Cogmind - Beta 15 @@@ ROGUE MODE // 2025.05.27 @ 12:09:18 Player: Happy Aspid Result: Self-destructed Performance ------------- Evolutions (1) 500 Regions Visited (2) 400 Robots Destroyed (22) 110 Value Destroyed (516) 516 Prototype IDs (0) 0 Alien Tech Used (0) 0 Bonus (0) 0 TOTAL SCORE: 1526 Bonus ------- None Cogmind --------- Core Integrity 390/400 Matter 242/300 Energy 13/100 System Corruption 0% Temperature Cool (82) Movement Walking (260) Ox2 Location -9/Materials Parts ------- > --- POWER (1) -------- (None) > --- PROPULSION (3) --- Light Treads Aluminum Leg > --- UTILITY (3) ------ Improved Heat Sink Large Storage Unit > --- WEAPON (2) ------- Pulse Rifle > --- INVENTORY (15) --- Aluminum Leg Aluminum Leg Aluminum Leg High-capacity Matter Pod (200) Hacking Suite Hacking Suite Particle Gun Light Cannon Peak State ------------ > --- POWER ------------ (None) > --- PROPULSION ------- Light Treads Light Treads Wheel > --- UTILITY ---------- Improved Heat Sink Large Storage Unit Improved Terrain Scanner > --- WEAPON ----------- Pulse Rifle Pulse Rifle > --- INVENTORY -------- Aluminum Leg Aluminum Leg Aluminum Leg Aluminum Leg High-capacity Matter Pod Hacking Suite Hacking Suite Particle Gun Light Cannon [Rating: 17] Favorites ----------- Power Ion Engine Engine Ion Engine Power Core Light Nuclear Core Propulsion Wheel Treads Light Treads Leg Aluminum Leg Wheel Wheel Utility Improved Terrain Scanner Device Improved Terrain Scanner Storage Small Storage Unit Weapon Light Assault Rifle Energy Gun Particle Gun Ballistic Gun Light Assault Rifle Ballistic Cannon Light Cannon Build | -11 -10 -9 ------- Run | Yrd Mat Mat Slots Evolved 2 | . . 2 Power . | . . . Propulsion 1 | . . 1 Utility 1 | . . 1 Weapon . | . . . Parts Attached 21 | 8 9 4 Power 2 | 1 1 . Engine 1 | 1 . . Core 1 | . 1 . Reactor . | . . . Propulsion 8 | 3 4 1 Treads 2 | . 2 . Leg 1 | . . 1 Wheel 5 | 3 2 . Hover . | . . . Flight . | . . . Utility 5 | 2 2 1 Device 2 | 1 . 1 Storage 3 | 1 2 . Processor . | . . . Hackware . | . . . Protection . | . . . Artifact . | . . . Weapon 6 | 2 2 2 Energy Gun 3 | . 1 2 Energy Cannon . | . . . Ballistic Gun 2 | 2 . . Ballistic Cannon 1 | . 1 . Launcher . | . . . Special Weapon . | . . . Impact Weapon . | . . . Slashing Weapon . | . . . Piercing Weapon . | . . . Special Melee Weapon . | . . . Unidentified Prototypes . | . . . Parts Lost 9 | . 5 4 Power 1 | . 1 . Propulsion 4 | . 2 2 Utility 1 | . . 1 Weapon 3 | . 2 1 Highest Loss Streak 5 | . 5 4 To Critical Strikes . | . . . Average Backups 7 | 4 8 8 Power . | . . . Propulsion 3 | 2 3 3 Utility 2 | . 3 3 Weapon . | . . 1 Tool/Special . | . . . Unused Backups 10 | . 4 6 Power 1 | . 1 . Propulsion 5 | . 2 3 Utility 3 | . . 3 Weapon 1 | . 1 . Tool/Special . | . . . Average Slot Usage (%) 93 | . 94 81 Engine 4 | . 5 . Core 4 | . 4 . Treads 8 | . 7 20 Wheel 19 | . 20 9 Device 14 | . 14 17 Storage 13 | . 14 11 Energy Gun 4 | . 2 15 Ballistic Gun 18 | . 20 . Ballistic Cannon 4 | . 4 6 Peak Build Rating 17 | 9 12 17 Average Rating 10 | 4 10 14 On Entrance 6 | . 9 10 Naked Turns . | . . . Heaviest Build 28 | 13 27 28 Greatest Support 40 | 26 40 10 Greatest Overweight (x) 2 | . 2 2 Average Overweight (x) . | . . 2 Largest Inventory Capacity 15 | 8 15 15 Average Capacity 9 | 7 8 15 Most Carried 10 | 8 10 9 Average Carried 7 | 4 8 7 Final Capacity 15 | 8 15 15 Final Carried 9 | 8 9 8 Class Distribution -------------------- 96% | Mutant 3% | Scavenger-Mutant Dominant Class ---------------- Mutant | -10/Materials Scavenger-Mutant | -9/Materials Resources | -11 -10 -9 ----------- Run | Yrd Mat Mat Matter Collected 725 | 282 443 . Remotely . | . . . Salvage Created 685 | 106 579 . Parts 46 | 10 36 . Haulers Intercepted 1 | . 1 . Recyclers Shooed . | . . . Parts Field Recycled . | . . . Retrieved Matter . | . . . Parts Self-Destructed . | . . . Prevented . | . . . Kills | -11 -10 -9 ------- Run | Yrd Mat Mat Combat Hostiles Destroyed 14 | . 14 . Guns 10 | . 10 . Cannons 4 | . 4 . Classes Destroyed 7 | 2 5 . Tunneler 2 | 2 . . Hauler 1 | . 1 . Recycler 1 | 1 . . Operator 2 | . 2 . Watcher 2 | . 2 . Swarmer 3 | . 3 . Grunt 11 | . 11 . Best Kill Streak 4 | 2 4 . Combat Bots Only 4 | . 4 . Max Kills in Single Turn 2 | 1 2 . Gunslinging 1 | . 1 . Exploded . | . . . Melee . | . . . Uniques/NPCs Destroyed . | . . . Combat | -11 -10 -9 -------- Run | Yrd Mat Mat Hostile Shots Fired 128 | . 96 32 Missed 26 | . 20 6 Hits 102 | . 76 26 Projectile 102 | . 76 26 Critical Strikes 2 | . 1 1 Damage Taken 1192 | . 842 350 Core 221 | . 211 10 Absorbed by Shields . | . . . Core Remaining (%) 57 | 100 15 . Volleys Fired 90 | 6 77 7 Largest 2 | 2 2 2 Hottest 126 | 40 50 126 Shots Fired 172 | 12 148 12 Gun 160 | 12 138 10 Cannon 12 | . 10 2 Launcher . | . . . Special . | . . . Kinetic 162 | 12 148 2 Thermal 10 | . . 10 Explosive . | . . . Electromagnetic . | . . . Robot Hit Streak 12 | 6 12 8 Robot Miss Streak 5 | 1 5 1 Penetration Max . | . . . Secondary Targets 2 | . 2 . Max Gunslinging Chain 1 | . 1 . Shots Hit Robots 117 | 11 96 10 Core Hits 48 | 6 41 1 Critical Kills 1 | . 1 . Critical Parts Destroyed . | . . . Critical Strikes 2 | . 1 1 Burn 1 | . . 1 Destroy 1 | . 1 . Melee Attacks . | . . . Impact . | . . . Slashing . | . . . Piercing . | . . . Sneak Attacks . | . . . Combat Hostiles . | . . . Follow-up Attacks . | . . . Damage Inflicted 1119 | 97 852 170 Guns 983 | 97 733 153 Cannons 136 | . 119 17 Explosions . | . . . Melee . | . . . Ramming . | . . . Kinetic 966 | 97 852 17 Thermal 153 | . . 153 Explosive . | . . . Electromagnetic . | . . . Impact . | . . . Slashing . | . . . Piercing . | . . . Highest Corruption . | . . . Average Corruption . | . . . Corruption Purged . | . . . Corruption Blocked . | . . . Overload Shots . | . . . Overflow Damage . | . . . Projectiles . | . . . Explosions . | . . . Melee . | . . . Knockbacks 2 | . 2 . Impact . | . . . Kinetic 2 | . 2 . Secondary . | . . . Self-Inflicted Damage . | . . . Shots . | . . . Rammed . | . . . Targets Rammed . | . . . Kicked . | . . . Crushed . | . . . Highest Temperature 76 | . 29 76 Average Temperature 12 | . 7 44 Received Heat Transfer 597 | . 423 174 Siege Activations . | . . . Martial Activations . | . . . Shielding Activations . | . . . Robots Disrupted . | . . . Combat Hostiles . | . . . Robots Corrupted . | . . . Combat Hostiles . | . . . Parts Fried . | . . . Impact Corruptions . | . . . Robots Melted . | . . . Combat Hostiles . | . . . Parts Melted . | . . . Heat Transferred 407 | . . 407 Parts Sabotaged . | . . . Parts Stolen . | . . . Parts Stripped . | . . . Power Chain Reactions . | . . . Alert | -11 -10 -9 ------- Run | Yrd Mat Mat Maximum Alert Level 1 | . 1 . Low Security (%) 68 | 100 61 100 Level 1 31 | . 38 . Level 2 . | . . . Level 3 . | . . . Level 4 . | . . . Level 5 . | . . . High Security . | . . . Max Security . | . . . Peak Influence 322 | 5 322 105 Initial 105 | . . 105 Average 127 | 1 145 85 Influence Increases 590 | 15 575 . Destroy 0b10 Robot/C 280 | . 280 . Destroy 0b10 Robot/NC 40 | 15 25 . Destroy Leader 66 | . 66 . Successful Hack 9 | . 9 . Lose Combat Pursuer 195 | . 195 . Influence Decreases 555 | 15 325 215 Entered New Map 145 | . . 145 Time Decay 320 | 15 275 30 Lost Part 90 | . 50 40 Squads Dispatched 4 | . 3 1 Investigation . | . . . Extermination . | . . . Reinforcement 4 | . 3 1 Assault . | . . . Garrison . | . . . Intercept . | . . . Searches Triggered . | . . . Construction Impeded . | . . . Haulers Reinforced . | . . . Active Scanning Responses . | . . . Cargo Convoy Interrupts . | . . . Stealth | -11 -10 -9 --------- Run | Yrd Mat Mat Distress Signals 2 | . 2 . Communications Jammed . | . . . Distress Signals . | . . . Times Spotted 35 | . 30 5 Peak Tracking Total 4 | . 4 4 Tactical Retreats 6 | . 6 . Traps | -11 -10 -9 ------- Run | Yrd Mat Mat Traps Triggered . | . . . Indirectly . | . . . Trap Hack Attempts . | . . . Triggered . | . . . Disarmed . | . . . Reprogrammed . | . . . Reused . | . . . Traps Extracted . | . . . Installed . | . . . Triggered . | . . . Machines | -11 -10 -9 ---------- Run | Yrd Mat Mat Machines Disabled . | . . . Max in Single Turn . | . . . Machines Repaired . | . . . Machines Dismantled . | . . . Machines Sabotaged . | . . . Overloaded Fab Kills . | . . . Hacking | -11 -10 -9 --------- Run | Yrd Mat Mat Machines Accessed 2 | . 2 . Terminals 2 | . 2 . Fabricators . | . . . Repair Stations . | . . . Recycling Units . | . . . Scanalyzers . | . . . Garrison Access . | . . . Total Hacks 7 | . 7 . Successful 4 | . 4 . Failed 3 | . 3 . Catastrophic . | . . . Database Lockouts . | . . . Manual 2 | . 2 . Terminals 7 | . 7 . Fabricators . | . . . Repair Stations . | . . . Recycling Units . | . . . Scanalyzers . | . . . Garrison Access . | . . . Terminal Hacks 4 | . 4 . Record 1 | . 1 . Alert Level 1 | . 1 . Locate Traps 1 | . 1 . Zone Layout 1 | . 1 . Fabricator Hacks . | . . . Repair Station Hacks . | . . . Recycling Unit Hacks . | . . . Scanalyzer . | . . . Garrison Access Hacks . | . . . Unauthorized Hacks . | . . . Terminals . | . . . Fabricators . | . . . Repair Stations . | . . . Recycling Units . | . . . Scanalyzers . | . . . Garrison Access . | . . . Data Cores Recovered . | . . . Used . | . . . Hacking Detections 2 | . 2 . Full Trace Events . | . . . Feedback Events . | . . . Feedback Blocked . | . . . Robot Schematics Acquired . | . . . Robots Built . | . . . Authchips . | . . . Time . | . . . Total Robot Build Rating . | . . . Part Schematics Acquired . | . . . Parts Built . | . . . Authchips . | . . . Time . | . . . Total Part Build Rating . | . . . Parts Repaired . | . . . Time . | . . . Parts Recycled . | . . . Recycled Matter . | . . . Retrieved Matter . | . . . Retrieved Components . | . . . Parts Scanalyzed . | . . . Part Schematics Acquired . | . . . Parts Damaged . | . . . Bothacking | -11 -10 -9 ------------ Run | Yrd Mat Mat Used RIF Installer . | . . . Robots Hacked . | . . . Non-combat . | . . . Combat . | . . . Robot Hacks Applied . | . . . Relay Couplers Released . | . . . Fabnet Peak Effective % . | . . . Robots Rewired . | . . . Allies Hacked . | . . . Hacks Repelled . | . . . Allies | -11 -10 -9 -------- Run | Yrd Mat Mat Total Allies . | . . . Largest Group . | . . . Highest-Rated Group . | . . . Highest-Rated Ally . | . . . Total Orders . | . . . Ally Attacks . | . . . Total Damage . | . . . Kills . | . . . Allies Corrupted . | . . . Allies Melted . | . . . Intel | -11 -10 -9 ------- Run | Yrd Mat Mat Active Infowar (turns) 719 | 6 680 33 Terrain 719 | 6 680 33 Robot Analysis Total . | . . . Derelict Logs Recovered . | . . . Drone Launches . | . . . Drone Recoveries . | . . . Exploration | -11 -10 -9 ------------- Run | Yrd Mat Mat Turns Passed 825 | 81 680 64 Spaces Moved 498 | 59 419 20 Core 20 | 20 . . Treads 86 | . 86 . Legs . | . . . Wheels 392 | 39 333 20 Hover . | . . . Flight . | . . . Fastest Speed 50 | 50 90 110 Average Speed 101 | 72 105 110 Slowest Speed 160 | 90 160 110 Overloaded Moves . | . . . Propulsion Burnouts . | . . . Robots Hopped . | . . . Potential Cave-ins . | . . . Cave-ins Triggered . | . . . Exploration Rate (%) 22 | 4 60 4 Regions Visited 2 Branch Regions . Pre-discovered Areas . | . . . Known Exits Taken . | . . . Unknown Exits Taken 2 | 1 1 . Scrap Searched . | . . . Spaces Dug . | . . . Terrain Destroyed . | . . . Melee . | . . . Projectile . | . . . AOE . | . . . Terrain Rammed . | . . . Walls Destroyed . | . . . Machines Disabled . | . . . Actions | -11 -10 -9 --------- Run | Yrd Mat Mat Total 677 | 86 542 49 Wait 29 | . 14 15 Move 496 | 58 418 20 Hop . | . . . Pick Up 28 | 14 12 2 Fast Attach 1 | 1 . . Attach 13 | 6 4 3 Detach . | . . . Swap 9 | 1 6 2 Drop 11 | . 11 . Fire 90 | 6 77 7 Melee . | . . . Ram . | . . . Kick . | . . . Crush . | . . . Escape Stasis . | . . . Rewire . | . . . Trap . | . . . Miscellaneous . | . . . Route ------- -11/Scrapyard -10/Materials (discovered 4 exits: [*Mat x3] / [*Min]) -9/Materials History --------- Turn | Location | Event 37 | -11/Scrapyard | Discovered new exit (range 16) 82 | -11/Scrapyard | Entered Materials 168 | -10/Materials | Discovered new exit (range 6) 221 | -10/Materials | Discovered new exit (range 8) 307 | -10/Materials | Build established: Mutant 486 | -10/Materials | Core integrity fell below 50% 533 | -10/Materials | Discovered new exit (range 13) 578 | -10/Materials | Core integrity fell below 20% 610 | -10/Materials | Lost 5 parts (1p2n2w) 755 | -10/Materials | Discovered new exit (range 7) 762 | -10/Materials | Entered another Materials area 762 | -9/Materials | Evolved 2 slots: Propulsion x1, Utility x1 826 | -9/Materials | Self-destructed Last Messages --------------- Current Alert Level: 1-L 00689_ K-01 Serf cleans the Processing Tank. 00735_ Acquired Lrg. Storage Unit. 00738_ Dropped Med. Storage Unit. 00755_ EXIT=FOUND PARAMETERS=PROPULSION+1,UTILITY+1 LOCATION=UNKNOWN GOAL=ESCAPE 00771_ O-16 Technician: "IFF HANDSHAKE FAILED. SECURING TERMINAL." 00789_ Acquired Pulse Rifle. 00797_ Imp. Terrain Scanner destroyed. 00800_ Y-45 Defender suffers critical hit (Burn). 00803_ Critical hit (Burn: +37). 00811_ Wheel destroyed. 00824_ Pulse Rifle destroyed. 00825_ Lgt. Treads destroyed. 00826_ ALERT: Hostiles spotted, dispatching reinforcements to Terminal M002. Map ----- +----------------------------------------------------+ | ?????????????????????????????????????????????????? | | ?????????????????????????????????????????????????? | | ?????????????????????????????????????????????????? | | ?????????????????????????????????????????????????? | | ???????????????????????????##????????????????????? | | ??????????????????????????? ????????????????????? | | ?????????????????????#????? ???? ????????????? | | ??????????????????????????? ???? ????????????? | | ???????????????????????????# ???? ????????????? | | ???????????????????????????# ???? #????????????? | | ????????????????????########+#### #????????????? | | ????????????????????# # #????????????? | | ????????????????????# ! # #????????????? | | ????????????????????# # #????????????? | | ????????????????????? %!! # #??#?????????? | | ??????????????????#????!! # #????????????? | | ????????????????????????? + #????????????? | | ??????????????????????????? # #??#?????????? | | ????????????????# ###########k### #????????????? | | ????????????????# #????????????? | | ???????????????????# #????????????? | | ???????????????????# #????????????? | | ???????????????????# ###ggg ### #????????????? | | ???????????????????????# % #?# #????????????? | | ???????????????????????#==[ ]]#?# #????????????? | | ???????????????????????#=@[ ]]#?# #????????????? | | ???????????????????????########?# #????????????? | | ??????????????????? ????#???????# #????????????? | | ????????????????????????????????# #????????????? | | ????????????????????????????????#####????????????? | | ???????????????????????????????????????????#?????? | | ?????????????????????????????????????????????????? | | ?????????????????????????????????????????????????? | | ?????????????????????????????????????????????????? | | ?????????????????????????????????????????????????? | | ?????????????????????????????????????????????????? | | | | | | | | | | | | | | | | | | | | | | | | | | | | | +----------------------------------------------------+ Best States ------------- Heat Dissipation 42 Energy Generation 14 Energy Capacity 250 Matter Stores 300 Matter Capacity 300 Sight Range 16 Terrain Scan Range 16 Terrain Scan Density 10 Evasion (%) 50 Recoil Reduction 2 Item Schematics ----------------- None Robot Schematics ------------------ None Fabricated ------------ Nothing Repaired ---------- Nothing Alien Tech Used ----------------- None Achievements -------------- None Challenges ------------ None Game ------ Seed BombTransmissionOptics Manual? 0 Play Time 00:11:44 Cumulative 198.7 hours Start 2025.05.27 @ 11:58:54 End 2025.05.27 @ 12:09:18 Sessions 1 Manual Loads 0 Difficulty Rogue Special Mode None Game No. 234 Rogue 234 Adventurer 0 Explorer 0 Win Type - Total 0 Types 0/0/0/0/0/0/0/0/0/0 Lore% 28 Gallery% 56 Achievement% 50 Wizard Run 0 Options --------- Layout 1 ASCII 0 Keyboard 0 Movement Mouse Keybinds 0 Fullscreen 1 Font 24/Smallcaps Map View 50x35 Zoom Use 0% Tactical HUD 1 Map Filters NONE Filters NONE Steam 1 RUN: 90ce06c2-adfe-4c09-9efa-cc9103a55b6c